bitfinex/quotes_SOLUSD_20220228
["timestamp","ask_amount","ask_price","bid_price","bid_amount"]
[1646082721543,23.21826506,98.648,98.569,2.64375528]
[1646082721949,2.74678921,98.647,98.569,2.64375528]
[1646082724947,23.21826506,98.646,98.569,2.64375528]
[1646082725348,2.74678921,98.645,98.569,2.64375528]
[1646082725548,12.46,98.64,98.569,2.64375528]
[1646082725948,2.74678921,98.639,98.569,2.64375528]
[1646082727550,2.74678921,98.639,98.564,2.32591141]
[1646082732959,2.74678921,98.639,98.564,104.52591141]
[1646082733159,12.46,98.66,98.565,2.74412255]
[1646082733360,2.74678921,98.664,98.565,2.74412255]
[1646082733760,13.1058776,98.663,98.565,2.74412255]
[1646082733978,13.1058776,98.663,98.563,22.837]
[1646082733979,13.1058776,98.663,98.568,2.77912988]
[1646082734177,2.74678921,98.684,98.568,2.77912988]
[1646082735379,23.25468768,98.695,98.568,2.77912988]
[1646082735679,2.74678921,98.702,98.572,2.55469504]
[1646082735879,13.10148776,98.694,98.572,2.55469504]
[1646082736280,13.10148776,98.701,98.572,2.55469504]
[1646082736681,2.74678921,98.7,98.572,2.55469504]
[1646082737081,13.10148776,98.699,98.572,2.55469504]
[1646082737284,13.10148776,98.699,98.573,2.74678921]
[1646082737581,14.9055,98.719,98.573,2.74678921]
[1646082737783,15.20678921,98.73,98.575,2.79028834]
[1646082737982,13.09514565,98.718,98.591,163.5]
[1646082738181,13.09514565,98.718,98.593,163.5]
[1646082738381,2.74678921,98.73,98.594,2.54484615]
[1646082738382,13.09514565,98.721,98.594,2.54484615]
[1646082738684,13.09514565,98.721,98.595,163.5]
[1646082738882,13.09514565,98.721,98.596,2.80660058]
[1646082739082,13.09514565,98.721,98.611,163.5]
[1646082739281,13.09514565,98.721,98.613,163.5]
[1646082739481,13.09514565,98.721,98.614,2.58576229]
[1646082739482,2.74678921,98.72,98.614,2.58576229]
[1646082739984,17.14914565,98.719,98.616,2.28031775]
[1646082740483,33.69978324,98.718,98.616,2.28031775]
[1646082740883,16.59965507,98.717,98.616,2.28031775]
[1646082741082,29.3664499,98.717,98.616,2.28031775]
[1646082741283,16.59965507,98.716,98.616,2.28031775]
[1646082741685,29.3664499,98.715,98.616,2.28031775]
[1646082742084,16.59965507,98.714,98.616,2.28031775]
[1646082742285,12.46,98.7,98.616,2.28031775]
[1646082742785,4.26222963,98.699,98.616,2.28031775]
[1646082742985,17.35737528,98.699,98.616,2.28031775]
[1646082743185,15.51358404,98.698,98.616,2.28031775]
[1646082743385,28.60872969,98.698,98.616,2.28031775]
[1646082743587,2.74678921,98.697,98.616,2.28031775]
[1646082743786,15.84193486,98.697,98.616,2.28031775]
[1646082744188,15.84193486,98.696,98.616,2.28031775]
[1646082744590,15.84193486,98.695,98.616,2.28031775]
[1646082744791,12.46,98.69,98.616,2.28031775]
[1646082744992,13.09514565,98.689,98.616,2.28031775]
[1646082745189,15.84193486,98.689,98.616,2.28031775]
[1646082745390,11.44987851,98.688,98.616,2.28031775]
[1646082745590,24.54502416,98.688,98.616,2.28031775]
[1646082745792,11.41345589,98.687,98.616,2.28031775]
[1646082745990,15.84193486,98.687,98.616,2.28031775]
[1646082746190,2.74678921,98.686,98.616,2.28031775]
[1646082746393,15.84193486,98.686,98.616,2.28031775]
[1646082746893,15.84193486,98.685,98.616,2.28031775]
[1646082747594,13.09514565,98.684,98.616,2.28031775]
[1646082747792,12.46,98.68,98.616,2.28031775]
[1646082748391,15.84193486,98.679,98.616,2.28031775]
[1646082748792,15.84193486,98.678,98.616,2.28031775]
[1646082749191,15.84193486,98.677,98.616,2.28031775]
[1646082749591,15.84193486,98.676,98.616,2.28031775]
[1646082749792,13.09514565,98.676,98.616,2.28031775]
[1646082749992,12.46,98.68,98.616,2.28031775]
[1646082750492,13.08899441,98.679,98.616,2.28031775]
[1646082751695,12.46,98.68,98.616,2.28031775]
[1646082752394,13.08951087,98.679,98.616,2.28031775]
[1646082753096,12.58951087,98.679,98.616,2.28031775]
[1646082753795,12.46,98.71,98.616,2.28031775]
[1646082754196,13.93679475,98.713,98.616,2.28031775]
[1646082754399,12.46,98.7,98.616,2.28031775]
[1646082754999,7.08012255,98.693,98.616,2.28031775]
[1646082755203,12.46,98.69,98.616,2.28031775]
[1646082755802,2.74678921,98.689,98.616,2.28031775]
[1646082756002,4.054,98.688,98.616,2.28031775]
[1646082756202,3.554,98.688,98.616,2.28031775]
[1646082756401,2.74678921,98.687,98.616,2.28031775]
[1646082756802,16.68184243,98.686,98.616,2.28031775]
[1646082757202,2.74678921,98.685,98.616,2.28031775]
[1646082757603,15.78321185,98.685,98.616,2.28031775]
[1646082757905,2.74678921,98.684,98.616,2.28031775]
[1646082758103,12.46,98.67,98.616,2.28031775]
[1646082760805,15.1211,98.693,98.616,2.28031775]
[1646082761002,12.46,98.69,98.616,2.28031775]
[1646082766010,27.5705,98.69,98.616,2.28031775]
[1646082767010,10.02938921,98.689,98.616,2.28031775]
[1646082767310,2.74678921,98.688,98.594,2.82434424]
[1646082767510,4.054,98.687,98.594,2.82434424]
[1646082767734,4.054,98.687,98.561,2.26448151]
[1646082767918,104.94678921,98.686,98.561,2.26448151]
[1646082768109,102.2,98.684,98.561,2.26448151]
[1646082768313,12.46,98.67,98.561,2.26448151]
[1646082768510,4.056,98.669,98.561,2.26448151]
[1646082768911,6.80278921,98.669,98.562,53.66139017]
[1646082769112,11.16606748,98.668,98.563,2.9735025]
[1646082769313,1.37935804,98.666,98.563,2.9735025]
[1646082769513,4.056,98.665,98.563,2.9735025]
[1646082769711,103.90847267,98.664,98.563,2.9735025]
[1646082769913,12.46,98.65,98.563,2.9735025]
[1646082770515,2.74678921,98.649,98.563,2.9735025]
[1646082771215,4.59353547,98.649,98.563,2.9735025]
[1646082771522,4.59353547,98.649,98.528,22.6552]
[1646082771523,4.54713201,98.648,98.529,3.1213582]
[1646082771717,1.76953784,98.646,98.529,3.1213582]
[1646082771916,4.056,98.645,98.529,3.1213582]
[1646082772116,12.46,98.63,98.529,3.1213582]
[1646082772316,12.46,98.63,98.553,47.97002907]
[1646082772317,5.72987924,98.629,98.553,47.97002907]
[1646082772517,16.03330145,98.629,98.553,47.97002907]
[1646082772716,16.08741183,98.628,98.553,47.97002907]
[1646082772922,4.057,98.627,98.553,47.97002907]
[1646082773117,6.80378921,98.627,98.553,47.97002907]
[1646082773317,3.76664636,98.626,98.553,47.97002907]
[1646082773520,4.057,98.625,98.553,47.97002907]
[1646082773719,12.46,98.61,98.553,47.97002907]
[1646082774419,2.74678921,98.609,98.553,47.97002907]
[1646082776639,1.66716454,98.608,98.559,45.0028045]
[1646082776840,102.2,98.597,98.473,2.48021566]
[1646082777038,102.2,98.589,98.427,4.057]
[1646082777338,102.2,98.579,98.425,4.059]
[1646082777538,12.46,98.57,98.426,47.36792356]
[1646082777737,12.46,98.57,98.427,7.01276409]
[1646082777937,26.59084766,98.569,98.428,102.2]
[1646082778138,29.33763687,98.569,98.43,102.2]
[1646082778340,25.93690904,98.568,98.431,3.0187119]
[1646082778640,2.74678921,98.567,98.432,4.059]
[1646082778839,27.29322093,98.567,98.434,2.6123448]
[1646082779040,2.74678921,98.567,98.436,163.5]
[1646082779240,2.74678921,98.566,98.438,163.5]
[1646082779442,2.74678921,98.566,98.439,3.09994235]
[1646082785155,12.46,98.57,98.44,61.3]
[1646082785351,2.74678921,98.587,98.451,163.5]
[1646082785553,2.74678921,98.608,98.452,2.28826624]
[1646082785751,4.059,98.607,98.453,163.5]
[1646082785953,4.059,98.607,98.454,2.29833151]
[1646082786254,4.059,98.607,98.456,163.5]
[1646082786453,2.74678921,98.606,98.471,163.5]
[1646082786651,4.059,98.605,98.473,163.5]
[1646082786852,4.059,98.605,98.474,2.72884052]
[1646082787053,2.74678921,98.604,98.474,2.72884052]
[1646082787252,4.059,98.603,98.474,2.72884052]
[1646082787652,2.74678921,98.602,98.474,2.72884052]
[1646082787854,4.059,98.601,98.476,163.5]
[1646082788053,4.059,98.601,98.477,2.71305731]
[1646082788253,2.74678921,98.6,98.477,2.71305731]
[1646082788453,2.74678921,98.6,98.481,163.5]
[1646082788653,2.74678921,98.6,98.482,2.65357902]
[1646082789462,2.74678921,98.6,98.484,163.5]
[1646082789656,2.74678921,98.62,98.485,2.79182216]
[1646082789857,2.74678921,98.62,98.487,61.3]
[1646082790057,2.74678921,98.62,98.501,163.5]
[1646082790256,2.74678921,98.62,98.503,163.5]
[1646082790456,2.74678921,98.62,98.504,2.879191]
[1646082795761,2.74678921,98.639,98.506,61.3]
[1646082795960,2.74678921,98.639,98.507,2.62779021]
[1646082796159,170.7787,98.72,98.522,3.0310721]
[1646082796160,12.46,98.69,98.522,3.0310721]
[1646082796561,12.46,98.69,98.524,163.5]
[1646082796760,2.74678921,98.689,98.525,2.91119561]
[1646082796960,2.74678921,98.689,98.541,163.5]
[1646082797160,4.056,98.688,98.543,163.5]
[1646082797360,4.056,98.688,98.544,2.77878298]
[1646082797660,2.74678921,98.687,98.544,2.77878298]
[1646082797860,2.74678921,98.687,98.545,2.74678921]
[1646082798062,2.74678921,98.687,98.546,163.5]
[1646082798259,2.74678921,98.687,98.562,2.70268388]
[1646082798460,2.74678921,98.687,98.565,2.52537241]
[1646082798863,4.054,98.686,98.565,2.52537241]
[1646082799059,4.054,98.686,98.567,2.93274411]
[1646082799263,2.74678921,98.702,98.58,12.46]
[1646082799460,2.74678921,98.715,98.583,163.5]
[1646082799661,2.74678921,98.715,98.586,2.26723506]
[1646082799860,2.74678921,98.709,98.591,163.5]
[1646082800062,2.74678921,98.709,98.592,2.69867812]
[1646082801262,6.80078921,98.736,98.593,2.74678921]
[1646082801465,2.74678921,98.736,98.593,2.74678921]
[1646082801663,2.74678921,98.736,98.595,2.55340012]
[1646082801865,2.74678921,98.761,98.597,2.63305839]
[1646082802063,16.513,98.76,98.611,163.5]
[1646082802262,16.513,98.76,98.61,12.46]
[1646082802263,16.513,98.76,98.613,163.5]
[1646082802463,2.74678921,98.759,98.614,2.35657125]
[1646082802865,2.74678921,98.759,98.615,2.74678921]
[1646082803164,20.21703626,98.758,98.614,2.35657125]
[1646082803567,2.74678921,98.757,98.616,163.5]
[1646082803766,2.74678921,98.757,98.621,163.5]
[1646082803966,11.25039836,98.756,98.622,2.25882848]
[1646082804168,20.21703626,98.756,98.622,2.25882848]
[1646082804368,4.56468255,98.755,98.622,2.25882848]
[1646082804566,12.46,98.74,98.62,12.46]
[1646082804765,12.46,98.74,98.621,61.3]
[1646082804965,2.74678921,98.739,98.622,3.0714883]
[1646082805369,2.74678921,98.739,98.622,105.2714883]
[1646082805566,2.74678921,98.739,98.632,102.2]
[1646082805767,2.74678921,98.739,98.631,61.3]
[1646082805768,12.46,98.74,98.634,163.5]
[1646082805968,12.46,98.74,98.636,102.2]
[1646082806171,12.46,98.74,98.637,3.03452278]
[1646082806371,2.74678921,98.739,98.637,3.03452278]
[1646082810671,4.053,98.738,98.637,1.20614491]
[1646082811173,2.74678921,98.737,98.637,1.20614491]
[1646082811672,4.053,98.736,98.637,1.20614491]
[1646082812075,2.74678921,98.735,98.637,1.20614491]
[1646082812274,4.053,98.734,98.637,1.20614491]
[1646082812474,2.74678921,98.735,98.637,1.20614491]
[1646082814877,12.46,98.75,98.637,1.20614491]
[1646082815277,2.74678921,98.747,98.637,1.20614491]
[1646082815878,2.74678921,98.747,98.637,0.40614491]
[1646082817003,2.74678921,98.747,98.635,47.814]
[1646082818202,2.74678921,98.747,98.636,102.2]
[1646082824716,2.74678921,98.747,98.637,4.053]
[1646082825515,2.74678921,98.747,98.636,102.2]
[1646082825516,2.74678921,98.747,98.636,106.253]
[1646082826315,1.52894646,98.749,98.636,106.253]
[1646082827423,1.52894646,98.749,98.637,2.68815054]
[1646082827620,1.52894646,98.749,98.638,4.051]
[1646082830624,1.52894646,98.749,98.644,163.5]
[1646082830826,1.52894646,98.749,98.646,102.2]
[1646082831024,1.52894646,98.749,98.647,2.63701126]
[1646082831626,1.52894646,98.749,98.649,102.2]
[1646082833123,1.52894646,98.749,98.648,24.2204]
[1646082833323,2.74678921,98.748,98.648,24.2204]
[1646082833524,4.051,98.747,98.648,24.2204]
[1646082833724,5.89003391,98.747,98.648,24.2204]
[1646082833924,2.74678921,98.746,98.648,24.2204]
[1646082834125,4.051,98.745,98.648,24.2204]
[1646082834326,5.64316118,98.745,98.648,24.2204]
[1646082834527,2.74678921,98.744,98.648,24.2204]
[1646082834725,22.96382547,98.744,98.648,24.2204]
[1646082834925,12.46,98.73,98.648,24.2204]
[1646082837125,12.46,98.73,98.649,102.2]
[1646082838930,12.46,98.75,98.649,102.2]
[1646082839132,12.46,98.75,98.65,2.66239018]
[1646082841236,1.7576798,98.749,98.648,24.2204]
[1646082841433,21.97471606,98.749,98.648,24.2204]
[1646082841633,1.57620508,98.748,98.648,24.2204]
[1646082842434,28.0362,98.75,98.649,2.92622259]
[1646082842851,30.78298921,98.75,98.649,2.92622259]
[1646082843050,4.051,98.749,98.649,2.92622259]
[1646082843452,2.74678921,98.748,98.649,2.92622259]
[1646082843651,4.051,98.747,98.649,2.92622259]
[1646082844051,2.74678921,98.746,98.649,2.92622259]
[1646082844253,4.051,98.745,98.649,2.92622259]
[1646082844652,2.74678921,98.744,98.649,2.92622259]
[1646082844852,4.051,98.743,98.649,2.92622259]
[1646082845054,12.46,98.73,98.649,2.92622259]
[1646082845552,2.74678921,98.729,98.649,2.92622259]
[1646082847255,12.46,98.73,98.649,2.92622259]
[1646082847558,2.74678921,98.729,98.649,2.92622259]
[1646082848857,5.9228045,98.728,98.649,2.92622259]
[1646082849258,2.74678921,98.727,98.649,2.92622259]
[1646082851862,12.46,98.73,98.649,2.92622259]
[1646082854566,4.053,98.749,98.649,102.2]
[1646082854765,18.88477544,98.765,98.661,163.5]
[1646082854965,2.68808454,98.834,98.663,163.5]
[1646082855168,4.049,98.849,98.67,5.0]
[1646082855369,14.9985836,98.833,98.682,56.95163253]
[1646082855570,14.9985836,98.833,98.683,163.5]
[1646082855769,17.09665864,98.832,98.684,2.90867524]
[1646082855969,17.09665864,98.832,98.685,163.5]
[1646082856170,13.04765864,98.831,98.702,2.27390924]
[1646082856468,4.049,98.83,98.702,2.27390924]
[1646082856769,4.049,98.83,98.703,2.74678921]
[1646082856968,13.04765864,98.829,98.703,2.74678921]
[1646082857169,4.049,98.828,98.703,2.74678921]
[1646082857568,4.049,98.839,98.705,163.5]
[1646082857768,4.049,98.839,98.706,2.65568651]
[1646082857969,4.049,98.839,98.712,53.01681439]
[1646082858174,13.02115092,98.838,98.713,163.5]
[1646082858370,13.02115092,98.838,98.714,2.30266709]
[1646082858670,13.02115092,98.839,98.714,2.30266709]
[1646082858970,13.02115092,98.839,98.715,2.74678921]
[1646082859169,13.02115092,98.839,98.716,23.0589]
[1646082859372,13.02115092,98.839,98.717,102.2]
[1646082859669,13.02115092,98.839,98.718,2.75913946]
[1646082859870,12.46,98.84,98.718,2.75913946]
[1646082860069,12.46,98.84,98.725,102.2]
[1646082860272,12.46,98.84,98.726,2.4338131]
[1646082860471,4.049,98.861,98.735,102.2]
[1646082860674,12.46,98.86,98.736,2.86369352]
[1646082861073,12.46,98.86,98.737,102.2]
[1646082861271,12.46,98.86,98.738,2.88003104]
[1646082862073,12.46,98.86,98.741,2.41791851]
[1646082862272,12.46,98.86,98.742,156.98923123]
[1646082862472,12.46,98.86,98.743,2.47902809]
[1646082864673,12.46,98.86,98.747,61.3]
[1646082864872,15.524,98.888,98.758,102.2]
[1646082865074,15.524,98.888,98.761,61.3]
[1646082865273,15.524,98.888,98.766,102.2]
[1646082865474,12.46,98.88,98.767,3.0774795]
[1646082866276,12.46,98.88,98.769,61.3]
[1646082866574,12.46,98.88,98.776,102.2]
[1646082866775,12.46,98.88,98.778,163.5]
[1646082866976,12.46,98.9,98.779,2.82031481]
[1646082867376,12.46,98.9,98.78,163.5]
[1646082867576,12.46,98.91,98.781,2.41363945]
[1646082867976,12.46,98.91,98.783,2.9536569]
[1646082868175,15.2173,98.918,98.784,4.046]
[1646082868378,15.2173,98.918,98.785,163.5]
[1646082868575,12.46,98.92,98.787,163.5]
[1646082868778,12.46,98.92,98.791,163.5]
[1646082869085,12.46,98.93,98.794,2.47536028]
[1646082869276,23.41854952,98.935,98.802,61.3]
[1646082869476,12.46,98.92,98.815,102.2]
[1646082869679,12.46,98.93,98.817,102.2]
[1646082869877,12.46,98.95,98.821,163.5]
[1646082870178,0.0001,98.895,98.822,3.08852258]
[1646082870378,0.0001,98.895,98.825,2.60222328]
[1646082870778,4.046,98.969,98.842,2.82041568]
[1646082870981,112.7,98.985,98.85,12.46]
[1646082871179,112.7,98.985,98.852,3.0199569]
[1646082871379,112.7,98.985,98.854,3.08514284]
[1646082871778,112.7,98.985,98.856,102.2]
[1646082871979,112.7,98.985,98.871,102.2]
[1646082872178,112.7,98.985,98.873,102.2]
[1646082872381,112.7,98.985,98.875,163.5]
[1646082872578,4.043,99.0,98.876,2.36957015]
[1646082872793,4.043,99.0,98.881,102.2]
[1646082872978,77.5781,99.058,98.889,102.2]
[1646082872979,4.041,99.023,98.889,102.2]
[1646082873178,4.041,99.023,98.882,62.68066091]
[1646082873179,4.041,99.034,98.901,102.2]
[1646082873378,4.041,99.034,98.89,75.7289995]
[1646082873379,4.041,99.034,98.91,12.46]
[1646082873580,12.46,99.04,98.911,102.2]
[1646082873779,12.46,99.04,98.913,102.2]
[1646082873980,12.46,99.04,98.914,2.77866842]
[1646082874178,12.46,99.04,98.915,4.041]
[1646082874378,12.46,99.04,98.917,102.2]
[1646082874578,12.46,99.04,98.918,7.03773052]
[1646082874777,12.46,99.04,98.918,2.99673052]
[1646082874980,23.41854952,99.034,98.918,2.99673052]
[1646082875680,12.46,99.03,98.918,2.99673052]
[1646082876082,15.20678921,99.03,98.918,2.99673052]
[1646082877184,36.44583135,99.03,98.918,2.99673052]
[1646082877784,1.4751796,99.029,98.918,2.99673052]
[1646082877985,112.7,99.024,98.891,2.53995758]
[1646082878184,12.46,99.01,98.891,2.53995758]
[1646082878385,1.35354266,99.009,98.891,2.53995758]
[1646082878784,4.10033187,99.009,98.892,56.285763]
[1646082878986,2.74678921,99.008,98.893,2.95379659]
[1646082879686,2.74678921,99.008,98.894,24.2181]
[1646082879886,2.74678921,99.008,98.895,2.30846636]
[1646082882088,21.23904214,99.007,98.895,2.30846636]
[1646082882489,2.74678921,99.006,98.895,2.30846636]
[1646082882888,23.41854952,99.005,98.895,2.30846636]
[1646082883092,12.46,98.99,98.895,2.30846636]
[1646082884408,11.46,98.99,98.895,2.30846636]
[1646082885613,2.74678921,98.989,98.895,2.30846636]
[1646082888215,104.94678921,98.989,98.83,12.46]
[1646082888414,5.78109844,98.988,98.831,102.2]
[1646082888614,102.2,98.987,98.837,3.11378945]
[1646082888815,102.2,98.985,98.837,3.11378945]
[1646082889013,12.46,98.97,98.837,3.11378945]
[1646082889214,12.46,98.96,98.862,48.65918179]
[1646082889413,12.46,98.95,98.863,2.7156258]
[1646082889612,12.46,98.94,98.863,2.7156258]
[1646082889812,12.46,98.93,98.863,2.7156258]
[1646082892016,12.46,98.93,98.838,48.594]
[1646082892217,15.20678921,98.93,98.839,2.88635126]
[1646082893024,15.20678921,98.93,98.856,55.01352311]
[1646082893220,15.20678921,98.93,98.857,2.45807436]
[1646082894027,15.20678921,98.93,98.838,48.594]
[1646082894221,15.20678921,98.93,98.839,3.00944076]
[1646082895022,15.20678921,98.93,98.854,3.04092579]
[1646082895223,15.20678921,98.93,98.838,48.594]
[1646082895524,15.20678921,98.93,98.839,2.37054521]
[1646082895723,1.80639339,98.929,98.803,3.05363596]
[1646082895923,4.045,98.928,98.803,3.05363596]
[1646082896124,6.79178921,98.928,98.803,3.05363596]
[1646082896424,2.74678921,98.927,98.805,2.7291955]
[1646082896627,4.045,98.926,98.805,2.7291955]
[1646082896924,2.74678921,98.925,98.805,2.7291955]
[1646082897125,12.46,98.91,98.805,2.7291955]
[1646082897326,1.62778722,98.909,98.805,2.7291955]
[1646082897523,4.37457643,98.909,98.805,2.7291955]
[1646082897723,1.62778722,98.909,98.805,2.7291955]
[1646082897924,6.79278921,98.908,98.805,2.7291955]
[1646082898123,102.2,98.907,98.805,2.7291955]
[1646082898323,104.94678921,98.907,98.754,2.57469026]
[1646082898524,102.2,98.899,98.733,2.40452754]
[1646082898725,102.2,98.889,98.733,2.40452754]
[1646082898923,12.46,98.88,98.733,2.40452754]
[1646082899123,1.84581357,98.879,98.735,43.32558716]
[1646082899326,4.048,98.878,98.735,43.32558716]
[1646082899527,5.66404101,98.878,98.736,102.2]
[1646082899725,2.74678921,98.877,98.743,61.3]
[1646082899923,4.048,98.876,98.746,102.2]
[1646082900123,4.048,98.876,98.747,2.65864475]
[1646082900328,2.74678921,98.875,98.749,102.2]
[1646082900524,4.048,98.874,98.752,61.3]
[1646082900725,12.46,98.86,98.755,102.2]
[1646082901025,12.46,98.86,98.756,3.05270786]
[1646082901625,12.46,98.86,98.755,102.2]
[1646082901626,12.46,98.86,98.748,23.7845]
[1646082901826,12.46,98.86,98.749,2.7078255]
[1646082902027,3.74193873,98.893,98.749,2.7078255]
[1646082902225,12.46,98.88,98.749,2.7078255]
[1646082902425,4.046,98.879,98.75,2.74678921]
[1646082903026,4.046,98.879,98.751,102.2]
[1646082903227,15.20678921,98.88,98.752,2.77510598]
[1646082903428,12.46,98.88,98.752,2.77510598]
[1646082904227,27.3072,98.88,98.752,2.77510598]
[1646082908229,27.3072,98.88,98.753,4.047]
[1646082908630,27.3072,98.88,98.752,2.77510598]
[1646082909431,27.3072,98.88,98.754,61.3]
[1646082909634,27.3072,98.88,98.755,102.2]
[1646082909831,27.3072,98.88,98.757,102.2]
[1646082910031,27.3072,98.88,98.758,3.06850525]
[1646082910234,12.46,98.88,98.765,102.2]
[1646082910433,12.46,98.88,98.775,102.2]
[1646082910631,12.46,98.88,98.776,2.39386154]
[1646082911932,12.46,98.88,98.785,102.2]
[1646082912137,12.46,98.88,98.786,2.35825796]
[1646082912834,12.46,98.89,98.786,2.35825796]
[1646082913033,2.74678921,98.912,98.789,3.07460254]
[1646082913235,12.46,98.9,98.789,3.07460254]
[1646082914835,3.48852595,98.899,98.789,3.07460254]
[1646082915239,2.74678921,98.898,98.789,3.07460254]
[1646082915438,6.12097913,98.898,98.789,3.07460254]
[1646082915838,2.74678921,98.897,98.789,3.07460254]
[1646082916537,20.0443596,98.896,98.789,3.07460254]
[1646082916938,2.74678921,98.895,98.789,3.07460254]
[1646082917141,12.46,98.88,98.789,3.07460254]
[1646082918741,3.37418992,98.911,98.789,3.07460254]
[1646082918942,12.46,98.9,98.789,3.07460254]
[1646082919144,12.46,98.92,98.807,61.3]
[1646082919341,12.46,98.92,98.818,102.2]
[1646082919543,12.46,98.92,98.825,61.3]
[1646082919743,21.74966587,98.941,98.836,102.2]
[1646082919941,12.46,98.94,98.838,102.2]
[1646082920144,12.46,98.94,98.839,2.3454161]
[1646082920543,12.46,98.94,98.841,163.5]
[1646082920743,2.74678921,98.94,98.842,2.49793086]
[1646082920942,186.6,98.99,98.842,2.49793086]
[1646082920943,12.46,98.96,98.842,2.49793086]
[1646082921144,4.043,98.975,98.843,163.5]
[1646082921344,12.46,98.97,98.844,2.51509642]
[1646082921744,12.46,98.97,98.845,163.5]
[1646082921943,12.46,98.97,98.846,2.57657154]
[1646082922246,12.46,98.97,98.861,163.5]
[1646082922543,12.46,98.97,98.862,3.00596439]
[1646082922743,12.46,98.97,98.864,2.81138544]
[1646082923145,12.46,98.97,98.863,166.24678921]
[1646082923146,3.37418992,98.998,98.868,163.5]
[1646082923344,12.46,99.03,98.869,2.94330952]
[1646082923550,2.74678921,99.016,98.882,2.91956431]
[1646082923944,2.74678921,99.016,98.883,24.90261227]
[1646082924144,15.2441,99.03,98.906,102.2]
[1646082924145,1.78321968,99.029,98.906,102.2]
[1646082924345,1.78321968,99.029,98.929,61.3]
[1646082924546,12.79753721,99.028,98.936,102.2]
[1646082924746,12.79753721,99.028,98.937,2.77064826]
[1646082924947,12.46,99.03,98.942,102.2]
[1646082925444,12.46,99.03,98.945,61.3]
[1646082925645,12.46,99.03,98.947,2.63755932]
[1646082927746,12.46,99.03,98.955,61.3]
[1646082927946,16.7655369,99.066,98.963,61.3]
[1646082928146,16.7655369,99.066,98.966,102.2]
[1646082928346,16.7655369,99.066,98.967,2.45530695]
[1646082928747,16.7655369,99.066,98.973,61.3]
[1646082928948,16.7655369,99.066,98.986,102.2]
[1646082929147,16.7655369,99.066,98.987,2.6499296]
[1646082929348,16.7655369,99.066,98.987,104.8499296]
[1646082929551,16.7655369,99.066,98.988,2.62182168]
[1646082929748,112.7,99.118,98.988,2.62182168]
[1646082929749,112.7,99.158,98.989,227.2]
[1646082929950,112.7,99.158,99.001,152.04087261]
[1646082930159,112.7,99.158,99.002,2.8155237]
[1646082930353,112.7,99.158,99.003,163.5]
[1646082930551,4.12894455,99.157,99.003,3.06149158]
[1646082930751,112.7,99.117,99.003,3.06149158]
[1646082930951,12.46,99.11,99.003,3.06149158]
[1646082931452,34.44098588,99.109,99.003,3.06149158]
[1646082931751,4.21993787,99.108,99.003,3.06149158]
[1646082931952,4.038,99.107,99.003,3.06149158]
[1646082932152,21.67886628,99.107,99.003,3.06149158]
[1646082932352,4.57976699,99.106,99.003,3.06149158]
[1646082932552,4.038,99.105,98.969,2.97713972]
[1646082932772,112.7,99.074,98.969,2.97713972]
[1646082932972,12.46,99.06,98.969,2.97713972]
[1646082933373,12.46,99.06,98.97,43.71635863]
[1646082933571,2.74678921,99.059,98.971,2.28229238]
[1646082933772,30.40298588,99.059,98.971,2.28229238]
[1646082933972,3.97005709,99.058,98.971,2.28229238]
[1646082934173,5.75327677,99.058,98.9,12.46]
[1646082934373,2.74678921,99.057,98.935,2.95197055]
[1646082934574,102.2,99.039,98.901,22.9592]
[1646082934773,1.67,98.998,98.811,2.67936018]
[1646082934974,155.77,98.97,98.811,2.67936018]
[1646082935173,12.46,98.96,98.787,74.6968]
[1646082935377,1.47228125,98.959,98.788,2.7922914]
[1646082935774,2.74678921,98.958,98.79,102.2]
[1646082935973,2.74678921,98.958,98.791,3.10324141]
[1646082936174,5.10992092,98.957,98.806,102.2]
[1646082936373,9.07997801,98.957,98.806,102.2]
[1646082936573,1.78321968,98.956,98.807,3.02165209]